bitfinex/quotes_ETHUSD_20250318
["timestamp","ask_amount","ask_price","bid_price","bid_amount"]
[1742310436726,10.51954221,1891.3,1891.2,5.28764]
[1742310437028,10.51954221,1891.3,1891.2,5.33743224]
[1742310437729,0.39719935,1891.3,1891.2,5.33743224]
[1742310438060,10.39015403,1891.7,1891.6,5.28652]
[1742310438244,10.78195634,1891.7,1891.6,5.28652]
[1742310438426,10.78195634,1891.7,1891.6,5.33703818]
[1742310439001,10.51514517,1891.7,1891.6,5.33703818]
[1742310439212,5.79380231,1891.7,1891.6,6.14443818]
[1742310439508,4.72134286,1891.9,1891.8,5.28597]
[1742310439709,4.72134286,1891.9,1891.8,5.33613152]
[1742310441196,4.72134286,1892.2,1892.0,6.06761]
[1742310441395,4.72134286,1892.3,1892.0,6.06761]
[1742310441735,0.40436926,1892.5,1892.4,5.28429]
[1742310441944,10.12334286,1892.6,1892.5,5.28401]
[1742310442107,11.48661505,1892.6,1892.5,5.28401]
[1742310442311,11.21845715,1892.6,1892.5,5.33387864]
[1742310442508,0.7562,1892.9,1892.8,5.28317]
[1742310442712,4.98078662,1893.0,1892.9,5.28289]
[1742310443517,4.72134286,1893.0,1892.9,5.33236399]
[1742310444128,4.72134286,1893.2,1893.1,5.28234]
[1742310445222,10.56485,1893.0,1892.8,5.28313]
[1742310445422,5.77782786,1892.9,1892.7,10.5667]
[1742310445625,5.77782786,1892.9,1892.8,5.28317]
[1742310445819,0.55,1892.8,1892.3,0.8166]
[1742310446147,4.72134286,1892.4,1892.2,5.28471]
[1742310446536,4.72134286,1892.4,1892.3,5.28457]
[1742310447447,5.19347715,1892.4,1892.3,5.28457]
[1742310448022,5.19347715,1892.4,1892.2,5.28471]
[1742310448249,5.19347715,1892.4,1892.2,10.56946]
[1742310448422,5.19347715,1892.4,1892.2,5.28471]
[1742310448624,5.19347715,1892.4,1892.2,10.56945]
[1742310448826,0.51934772,1892.3,1892.2,10.56945]
[1742310449344,0.51934772,1892.3,1892.2,5.28471]
[1742310449548,5.28471,1892.2,1892.1,5.28499]
[1742310449847,4.72134286,1892.2,1892.1,5.28499]
[1742310450227,5.24541192,1892.2,1892.1,5.28499]
[1742310450430,11.29379192,1892.2,1891.8,5.28589]
[1742310450631,4.72134286,1891.9,1891.6,5.28648]
[1742310450823,4.72134286,1891.7,1891.6,5.28652]
[1742310451450,5.12607713,1891.7,1891.6,5.28652]
[1742310451634,5.59821142,1891.7,1891.5,5.28664]
[1742310452131,10.99721142,1891.7,1891.5,5.28664]
[1742310452343,10.99721142,1891.7,1891.4,5.28704]
[1742310452546,4.72134286,1891.5,1891.4,10.574]
[1742310453628,0.40473427,1891.7,1891.6,5.28652]
[1742310453826,4.72134286,1891.8,1891.7,5.28613]
[1742310454752,5.086585,1891.7,1891.6,5.28652]
[1742310454973,4.72134286,1891.8,1891.5,5.28678]
[1742310455123,4.72134286,1891.6,1891.5,5.28678]
[1742310455322,5.19347715,1891.6,1891.5,5.28678]
[1742310455755,4.72134286,1891.6,1891.5,5.28678]
[1742310455960,0.7555,1892.3,1891.7,0.7867]
[1742310456135,0.7555,1892.3,1891.9,5.28553]
[1742310456136,4.72134286,1892.0,1891.9,5.28553]
[1742310456523,4.72134286,1892.0,1891.9,10.57103]
[1742310456742,4.72134286,1892.0,1891.9,5.2855]
[1742310457952,4.72134286,1892.0,1891.8,5.28582]
[1742310458126,4.72134286,1892.0,1891.8,10.57161]
[1742310458331,5.19347715,1892.0,1891.8,10.57155]
[1742310458541,5.19347715,1892.0,1891.9,5.28569]
[1742310458738,4.72134286,1892.1,1892.0,5.28518]
[1742310459057,5.12784002,1892.3,1892.2,5.28485]
[1742310463567,5.12784002,1892.3,1892.0,5.28537]
[1742310463736,4.72134286,1892.1,1892.0,5.28537]
[1742310464060,5.48184286,1892.1,1892.0,5.28537]
[1742310464365,11.42802715,1892.1,1891.8,5.28596]
[1742310464563,4.72134286,1891.9,1891.8,5.28596]
[1742310465532,10.11934286,1892.1,1892.0,5.28541]
[1742310466663,4.72134286,1892.1,1892.0,5.28541]
[1742310467727,4.72134286,1892.3,1892.2,5.28485]
[1742310467927,4.72134286,1892.5,1892.3,5.28453]
[1742310468140,4.72134286,1892.5,1892.4,5.28418]
[1742310468567,4.72134286,1892.6,1892.5,5.28401]
[1742310468866,5.398,1892.9,1892.7,5.28345]
[1742310469049,5.398,1892.9,1892.8,5.28317]
[1742310469259,11.418,1893.2,1893.0,5.28248]
[1742310469430,1.1418,1893.1,1893.0,5.28248]
[1742310469866,1.1418,1893.1,1892.9,5.28281]
[1742310470049,1.1418,1893.1,1892.6,0.7501]
[1742310470253,4.72134286,1892.9,1892.8,5.28306]
[1742310470633,4.72134286,1892.9,1892.1,41.33932635]
[1742310470835,4.72134286,1892.5,1892.3,5.28451]
[1742310471079,4.72134286,1892.5,1892.4,5.28429]
[1742310471465,4.72134286,1892.5,1892.1,5.28501]
[1742310471671,16.57507286,1892.7,1892.2,5.28458]
[1742310471902,4.72134286,1892.3,1892.2,5.28485]
[1742310474802,5.11494358,1892.3,1892.2,5.28485]
[1742310477001,5.11494358,1892.3,1892.0,5.28526]
[1742310477204,4.72134286,1892.1,1892.0,5.28526]
[1742310477365,4.72134286,1892.1,1891.8,5.28596]
[1742310477564,4.72134286,1891.9,1891.8,5.28596]
[1742310478365,4.72134286,1891.9,1891.7,5.28606]
[1742310478566,4.72134286,1891.9,1891.7,10.57213]
[1742310478988,4.72134286,1891.9,1891.8,5.28597]
[1742310479563,5.79560044,1892.3,1892.1,10.57016]
[1742310479762,0.57956004,1892.2,1892.1,5.28503]
[1742310479967,5.397,1892.3,1892.2,5.28485]
[1742310480380,5.397,1892.3,1892.1,5.28512]
[1742310480694,4.72134286,1892.2,1891.9,5.28553]
[1742310480864,4.72134286,1892.0,1891.9,5.28569]
[1742310481069,4.72134286,1892.2,1892.1,5.28513]
[1742310481682,0.39955432,1892.3,1892.2,5.28485]
[1742310481877,4.72134286,1892.6,1892.5,5.28401]
[1742310482081,4.72134286,1892.7,1892.6,5.28373]
[1742310482300,1.48269037,1892.9,1892.7,5.28318]
[1742310482504,4.72134286,1892.8,1892.7,10.56646]
[1742310483588,0.26969327,1893.3,1893.1,5.28215]
[1742310483780,4.72134286,1893.2,1893.1,5.28215]
[1742310484606,0.55,1892.9,1891.4,0.7896]
[1742310484904,4.72134286,1892.1,1892.0,5.28541]
[1742310485369,4.72134286,1892.1,1892.0,6.05541]
[1742310485698,4.72134286,1892.3,1892.2,5.28485]
[1742310486871,5.12767945,1892.3,1892.2,5.28485]
[1742310487078,5.12767945,1892.3,1892.1,5.28502]
[1742310487476,5.12767945,1892.3,1892.0,5.28538]
[1742310487805,4.72134286,1892.1,1891.9,5.28556]
[1742310487970,4.72134286,1892.0,1891.9,5.28556]
[1742310488594,5.90876795,1892.2,1892.1,5.28513]
[1742310488804,10.11734286,1892.2,1892.1,5.28513]
[1742310489809,10.11734286,1892.2,1891.7,35.0]
[1742310490108,4.72134286,1891.9,1891.8,5.28577]
[1742310491992,4.72134286,1892.1,1892.0,5.28541]
[1742310494787,4.72134286,1892.1,1891.9,5.28569]
[1742310494978,0.8157,1892.0,1891.9,5.28569]
[1742310495613,1.36940429,1892.0,1891.9,5.28569]
[1742310495773,1.36940429,1892.0,1891.7,5.28616]
[1742310495979,4.72134286,1891.8,1891.5,5.28667]
[1742310496284,4.72134286,1891.6,1891.5,5.28667]
[1742310496618,5.28667,1891.5,1891.3,5.28721]
[1742310496915,4.72134286,1891.4,1891.3,5.28721]
[1742310498421,5.28721,1891.3,1891.2,5.28751]
[1742310498717,4.72134286,1891.4,1891.2,5.28751]
[1742310498911,4.72134286,1891.4,1891.2,5.28747]
[1742310499113,4.72134286,1891.4,1891.2,5.28746]
[1742310499284,5.11178605,1891.4,1891.3,5.28736]
[1742310500110,5.11178605,1891.4,1891.2,5.28746]
[1742310500111,5.62296466,1891.4,1891.1,5.28789]
[1742310500298,4.72134286,1891.2,1891.0,5.28819]
[1742310500499,4.72134286,1891.2,1891.0,10.57621]
[1742310500704,5.54164286,1891.2,1890.9,5.28848]
[1742310500894,4.72134286,1891.0,1890.9,5.28825]
[1742310502294,5.396,1891.2,1891.1,5.28792]
[1742310502492,10.11734286,1891.2,1891.1,5.28792]
[1742310502695,4.72134286,1891.2,1891.1,5.28792]
[1742310503214,0.39044319,1891.4,1891.3,5.28736]
[1742310503215,5.11178605,1891.4,1891.3,5.28736]
[1742310503779,5.11178605,1891.4,1891.3,6.10636]
[1742310505983,0.7842,1892.0,1891.9,5.28569]
[1742310506213,0.7842,1892.0,1891.8,5.28586]
[1742310506214,5.50554286,1892.0,1891.8,5.28586]
[1742310506602,5.50554286,1892.0,1891.7,5.28622]
[1742310506787,4.72134286,1891.8,1891.6,5.28647]
[1742310507199,4.72134286,1891.8,1891.6,10.57282]
[1742310507399,4.72134286,1891.8,1891.6,5.28635]
[1742310508093,4.72134286,1891.8,1891.5,5.28677]
[1742310508422,4.72134286,1891.6,1891.5,5.28668]
[1742310512198,0.39545251,1891.7,1891.6,6.08492]
[1742310512422,4.72134286,1891.8,1891.6,5.28652]
[1742310512588,4.72134286,1891.8,1891.6,5.28637]
[1742310512795,4.72134286,1891.8,1891.7,5.28625]
[1742310513530,4.72134286,1892.0,1891.9,5.28569]
[1742310514392,4.72134286,1892.2,1892.0,5.28541]
[1742310514825,17.492,1892.6,1892.0,5.28541]
[1742310514826,4.72134286,1892.7,1892.6,5.28373]
[1742310515029,5.28208,1893.2,1892.9,5.28284]
[1742310515030,4.72134286,1893.0,1892.9,5.28284]
[1742310515323,5.19347715,1893.0,1892.9,5.28289]
[1742310515530,5.19347715,1893.0,1892.8,5.28305]
[1742310515724,4.72134286,1892.9,1892.8,5.28305]
[1742310516026,4.72134286,1892.9,1892.7,5.28318]
[1742310516231,4.72134286,1892.9,1892.6,5.28365]
[1742310516397,4.72134286,1892.7,1892.6,5.28365]
[1742310516600,5.12309164,1892.7,1892.6,5.28365]
[1742310517104,5.12309164,1892.7,1892.5,5.28395]
[1742310517294,5.12309164,1892.7,1892.6,5.28373]
[1742310517496,3.247234,1892.6,1892.3,0.8282]
[1742310517816,4.72134286,1892.4,1892.3,5.28456]
[1742310519927,0.40174878,1892.7,1892.5,5.28401]
[1742310520130,4.72134286,1892.8,1892.7,5.28345]
[1742310520800,4.72134286,1892.8,1892.6,5.28373]
[1742310521031,4.72134286,1892.8,1892.7,5.28345]
[1742310521435,5.11616963,1892.8,1892.7,4.88345]
[1742310525439,5.11616963,1892.8,1892.7,5.900168]
[1742310525650,4.72134286,1893.0,1892.7,5.900168]
[1742310525831,4.72134286,1893.0,1892.9,5.28289]
[1742310526430,4.72134286,1893.0,1892.9,6.07099]
[1742310527036,4.72134286,1893.0,1892.7,5.28345]
[1742310527223,4.72134286,1892.8,1892.7,5.28345]
[1742310527538,5.12034581,1892.8,1892.6,5.2836]
[1742310527742,5.12034581,1892.8,1892.7,5.28345]
[1742310527938,5.12034581,1892.8,1892.6,5.28369]
[1742310528176,5.12034581,1892.8,1892.7,5.28345]
[1742310529211,5.71399039,1892.8,1892.5,5.28391]
[1742310529513,4.72134286,1892.6,1892.5,5.28391]
[1742310530029,5.12034581,1892.8,1892.7,5.28345]
[1742310530205,0.39900295,1892.8,1892.7,5.28345]
[1742310530411,4.72134286,1893.0,1892.9,5.28289]
[1742310532949,4.72134286,1893.0,1892.8,5.28302]
[1742310533551,4.72134286,1893.0,1892.8,5.28301]
[1742310533722,4.72134286,1893.0,1892.9,5.28289]
[1742310534045,5.11161111,1893.0,1892.9,5.28289]
[1742310537554,4.72134286,1893.3,1893.0,5.2825]
[1742310537758,4.72134286,1893.4,1893.3,5.28178]
[1742310537947,4.72134286,1893.5,1893.4,5.2815]
[1742310538862,5.11177003,1893.5,1893.4,5.2815]
[1742310539161,5.11177003,1893.5,1893.3,10.56327]
[1742310539455,5.11177003,1893.5,1893.4,5.2815]
[1742310540648,0.39042717,1893.5,1893.4,6.337813]
[1742310540852,4.72134286,1893.7,1893.6,5.28094]
[1742310541523,4.72134286,1893.9,1893.8,5.28027]
[1742310542339,4.72134286,1893.9,1893.7,5.28055]
[1742310542949,10.00146286,1893.9,1893.6,5.28092]
[1742310543264,4.72134286,1893.7,1893.6,5.28094]
[1742310543471,4.72134286,1893.9,1893.8,5.28011]
[1742310543890,5.10906838,1894.1,1894.0,5.27983]
[1742310544235,0.38772552,1894.1,1894.0,5.27983]
[1742310544435,4.72134286,1894.1,1894.0,5.27983]
[1742310544685,4.72134286,1894.3,1894.2,5.27902]
[1742310545427,5.12098591,1894.3,1894.2,5.27902]
[1742310546346,5.12098591,1894.3,1894.0,5.27962]
[1742310546550,4.72134286,1894.1,1894.0,5.27962]
[1742310546760,4.72134286,1894.1,1893.8,5.28035]
[1742310546979,4.72134286,1893.9,1893.8,5.28035]
[1742310547493,5.28035,1893.8,1893.6,1.06094867]
[1742310547693,4.72134286,1893.7,1893.6,6.34185867]
[1742310547878,4.72134286,1893.8,1893.7,5.28055]
[1742310548081,4.72134286,1893.8,1893.7,6.07675]
[1742310549091,4.72134286,1893.8,1893.7,5.28055]
[1742310549976,5.94817715,1893.8,1893.4,5.28127]
[1742310550290,1.22683429,1893.8,1893.5,6.35127691]
[1742310550493,4.72134286,1893.6,1893.4,10.56265]
[1742310550736,4.72134286,1893.6,1893.4,5.28127]
[1742310550848,4.72134286,1893.6,1893.3,5.28175]
[1742310551048,5.28132,1893.5,1893.1,5.28216]
[1742310551254,4.72134286,1893.3,1893.0,10.56504]
[1742310551500,0.7906,1893.4,1893.0,10.56504]
[1742310551501,4.72134286,1893.1,1893.0,10.56504]
[1742310551662,4.72134286,1893.3,1893.2,5.28193]
[1742310553506,4.72134286,1893.5,1893.4,5.28129]
[1742310554477,4.72134286,1893.7,1893.6,5.28092]
[1742310554679,5.10983857,1893.7,1893.6,5.28092]
[1742310555362,5.10983857,1893.7,1893.5,5.28119]
[1742310555563,5.10983857,1893.7,1893.5,5.281]
[1742310555790,5.10983857,1893.7,1893.6,5.28094]
[1742310556161,4.72134286,1893.9,1893.8,5.28038]
[1742310557399,5.11824117,1893.9,1893.8,5.28038]
[1742310558609,4.72134286,1893.9,1893.8,5.28038]
[1742310560199,4.72134286,1893.9,1893.7,5.28049]
[1742310560506,4.72134286,1894.1,1894.0,5.27983]
[1742310560708,4.72134286,1894.2,1894.0,1.134152]
[1742310560906,4.72134286,1894.2,1894.1,5.27937]
[1742310561304,2.210089,1894.1,1893.8,5.28021]
[1742310561496,4.72134286,1893.9,1893.8,5.2802]
[1742310562919,4.72134286,1893.9,1893.7,5.28055]
[1742310563308,4.72134286,1893.9,1893.7,5.93449956]
[1742310563791,4.72134286,1893.9,1893.7,5.93447956]
[1742310563987,4.72134286,1893.9,1893.5,5.28113]
[1742310564195,4.72134286,1893.7,1893.5,5.28108]
[1742310564700,4.72134286,1893.7,1893.5,5.28107]
[1742310564896,4.72134286,1893.7,1893.6,5.28094]
[1742310565117,4.72134286,1893.7,1893.6,6.06374]
[1742310565292,4.72134286,1893.7,1893.6,7.198221]
[1742310565942,4.72134286,1893.9,1893.8,5.28015]
[1742310567820,4.72134286,1893.9,1893.7,10.56103]
[1742310568218,4.72134286,1893.9,1893.7,5.28048]
[1742310568425,4.72134286,1893.9,1893.6,5.28092]
[1742310568626,4.72134286,1893.7,1893.6,5.28092]
[1742310568951,4.72134286,1893.7,1893.5,5.28121]
[1742310569133,4.72134286,1893.7,1893.5,5.28106]
[1742310569336,4.72775252,1893.6,1893.5,5.28106]
[1742310570315,9.45550504,1893.6,1893.3,5.28168]
[1742310570527,4.72775252,1893.4,1893.3,5.28168]
[1742310571255,4.72775252,1893.4,1893.3,5.28178]
[1742310571459,5.50595252,1893.4,1893.3,5.28178]
[1742310571943,4.72775252,1893.4,1893.3,6.338152]
[1742310573447,4.72775252,1893.4,1893.3,5.28178]
[1742310574978,0.7782,1893.8,1893.6,5.28083]
[1742310575740,5.387,1893.9,1893.8,5.28038]
[1742310576056,4.72775252,1893.9,1893.8,5.28038]
[1742310578769,4.72775252,1893.9,1893.7,5.28054]
[1742310578944,4.72775252,1893.8,1893.7,5.28054]
[1742310579752,5.1322145,1893.8,1893.7,5.28054]
[1742310580994,5.1322145,1893.8,1893.6,10.56168]
[1742310581163,5.1322145,1893.8,1893.6,5.28078]
[1742310581366,5.1322145,1893.8,1893.7,5.28066]
[1742310581990,5.1322145,1893.8,1893.6,5.28078]
[1742310582292,0.8031,1893.7,1893.5,5.28113]
[1742310582465,0.8031,1893.7,1893.3,35.7557]
[1742310582466,4.72775252,1893.5,1893.3,5.28163]
[1742310582667,4.72775252,1893.5,1893.4,5.2815]
[1742310583770,4.72775252,1893.5,1893.3,5.28163]
[1742310583988,4.72775252,1893.5,1893.2,5.28201]
[1742310584293,4.72775252,1893.3,1893.2,5.28201]
[1742310585800,4.72775252,1893.3,1893.1,5.28232]
[1742310586104,10.56482,1893.1,1892.7,5.28328]
[1742310586265,4.72775252,1892.8,1892.6,5.28373]
[1742310586596,4.72775252,1892.8,1892.7,5.811823]
[1742310592411,4.72775252,1892.8,1892.7,40.811823]
[1742310593518,4.72775252,1892.8,1892.7,40.28345]
[1742310593817,5.52725252,1892.8,1892.7,5.28345]
[1742310594198,5.52725252,1892.8,1892.6,5.28362]
[1742310594398,5.52725252,1892.8,1892.7,5.28345]
[1742310594589,5.52725252,1892.8,1892.6,5.28362]
[1742310594590,10.25500504,1892.8,1892.6,5.28362]
[1742310594790,4.72775252,1892.7,1892.6,5.28362]
[1742310595928,5.52725252,1892.8,1892.7,5.28345]
[1742310596132,10.25500504,1892.8,1892.7,5.28345]
[1742310596495,10.25500504,1892.8,1892.6,5.28362]
[1742310596736,10.25500504,1892.8,1892.6,5.28359]
[1742310597033,5.52725252,1892.8,1892.7,5.28345]
[1742310597405,5.91528422,1892.8,1892.7,5.28345]
[1742310597629,5.91528422,1892.8,1892.6,5.28359]
[1742310597828,10.64303674,1892.8,1892.6,10.56719]
[1742310598139,10.64303674,1892.8,1892.6,5.28359]
[1742310598317,4.72775252,1892.7,1892.5,5.284]
[1742310599535,4.72775252,1892.6,1892.5,5.284]
[1742310601537,5.11578422,1892.8,1892.7,5.28345]
[1742310601714,4.72775252,1892.8,1892.7,6.340157]
[1742310602234,4.72775252,1892.8,1892.7,41.340157]
[1742310603850,4.72775252,1892.8,1892.7,5.28345]
[1742310604051,5.55305252,1892.8,1892.7,5.28345]
[1742310604248,5.12738534,1892.8,1892.7,5.28345]
[1742310605138,9.85513786,1892.8,1892.7,5.28345]
[1742310605343,0.8121,1892.7,1892.5,5.28397]
[1742310605670,4.72775252,1892.6,1892.5,5.28397]
[1742310608224,4.72775252,1892.6,1892.4,5.28418]
[1742310608225,5.20052777,1892.6,1892.4,5.28418]
[1742310608533,5.20052777,1892.6,1891.9,12.61388452]
[1742310608761,6.04226,1892.5,1892.2,5.28474]
[1742310608940,11.32646,1892.5,1892.1,5.28493]
[1742310609136,12.50638353,1892.5,1892.1,5.28493]
[1742310609454,12.50637353,1892.5,1892.1,5.28493]
[1742310609637,7.22218353,1892.5,1892.2,5.28483]
[1742310609965,4.72775252,1892.3,1892.2,5.28483]
[1742310610340,4.72775252,1892.3,1891.8,1.07826879]
[1742310610642,5.386,1892.4,1892.1,10.56994]
[1742310610837,5.386,1892.4,1892.1,5.28495]
[1742310611040,5.386,1892.4,1892.3,5.28457]
[1742310611426,5.386,1892.4,1892.2,5.28474]
[1742310611620,10.11375252,1892.4,1892.1,5.28511]
[1742310611824,4.72775252,1892.2,1892.1,5.28511]
[1742310613221,6.2155,1892.7,1892.6,5.28373]
[1742310613720,6.2155,1892.7,1892.5,5.28395]
[1742310613927,6.2155,1892.7,1892.4,5.28428]
[1742310614160,6.2155,1892.7,1892.5,5.28395]
[1742310614470,4.72775252,1892.6,1892.5,5.28395]
[1742310618778,4.72775252,1892.6,1892.4,5.28417]
[1742310618987,0.7521,1892.5,1892.3,5.2844]
[1742310619205,0.7521,1892.5,1892.4,5.28429]
[1742310619688,0.7521,1892.5,1892.4,10.56858]
[1742310619689,4.72775252,1892.5,1892.4,10.56858]
[1742310619847,4.72775252,1892.5,1892.4,5.28429]
[1742310620257,5.20052777,1892.5,1892.4,5.28429]
[1742310621173,4.72775252,1892.5,1892.4,5.28429]
[1742310622254,4.72775252,1892.5,1892.3,5.28454]
[1742310622454,4.72775252,1892.5,1892.3,10.56895]
[1742310622882,10.01189252,1892.5,1892.2,5.28476]
[1742310623082,4.72775252,1892.3,1892.2,5.28476]
[1742310624289,5.11563558,1892.3,1892.1,5.2849]
[1742310624461,5.52745252,1892.2,1891.9,5.28556]
[1742310624793,9.45550504,1892.0,1891.8,5.28597]
[1742310624973,0.7997,1891.9,1891.7,10.57237]
[1742310625161,4.72775252,1891.8,1891.7,5.28616]
[1742310626665,4.72775252,1891.8,1891.7,6.343417]
[1742310626989,4.72775252,1891.8,1891.7,10.154717]
[1742310627358,4.72775252,1891.8,1891.7,9.09746]
[1742310627987,4.72775252,1891.8,1891.7,10.17494388]
[1742310628900,1.14928306,1892.3,1892.2,5.28485]
[1742310629061,5.11563558,1892.3,1892.2,5.28485]
[1742310629766,4.72775252,1892.3,1892.2,5.28485]
[1742310629973,4.72775252,1892.3,1892.2,6.417747]
[1742310630319,4.72775252,1892.3,1892.2,9.417747]
[1742310631903,4.72775252,1892.3,1892.2,8.28485]
[1742310632106,4.72775252,1892.3,1892.2,5.28485]
[1742310633097,5.28485,1892.2,1892.0,5.28521]
[1742310633300,10.21100504,1892.1,1892.0,5.28521]
[1742310633811,10.21100504,1892.1,1891.9,5.28555]
[1742310633979,4.72775252,1892.0,1891.9,5.28555]
[1742310634182,5.11560474,1892.0,1891.9,5.28555]
[1742310635014,9.84335726,1892.0,1891.9,5.28555]
[1742310635214,9.84335726,1892.0,1891.7,5.28619]
[1742310635510,4.72775252,1891.8,1891.7,5.28625]
[1742310635678,4.72775252,1891.8,1891.7,7.173116]
[1742310636806,4.72775252,1891.8,1891.7,5.28625]
[1742310638033,5.54825252,1891.8,1891.6,5.28641]
[1742310638329,5.54825252,1891.8,1891.7,5.28625]
[1742310638618,5.54825252,1891.8,1891.6,5.28634]
[1742310638830,4.72775252,1891.7,1891.3,5.28724]
[1742310639038,4.72775252,1891.4,1891.3,5.28724]
[1742310639180,5.53675252,1891.4,1891.3,5.28724]
[1742310639511,5.53675252,1891.4,1891.2,5.28744]
[1742310639819,5.53675252,1891.4,1891.3,5.28736]
[1742310640206,5.53675252,1891.4,1891.2,5.28744]
[1742310640507,4.72775252,1891.3,1891.2,5.28744]
[1742310640879,4.72775252,1891.3,1891.1,5.28782]
[1742310641107,0.809,1891.4,1891.0,5.28818]
[1742310641108,9.45550504,1891.2,1891.0,5.28811]
[1742310641301,9.45550504,1891.2,1891.1,5.28792]
[1742310642087,4.72775252,1891.2,1891.1,5.28792]
[1742310642900,15.22908032,1891.2,1890.9,5.28824]
[1742310643101,4.72775252,1891.0,1890.9,5.28824]
[1742310651218,0.38857528,1891.2,1891.1,5.28792]
[1742310651390,4.72775252,1891.3,1891.2,5.28764]
[1742310652384,18.81882525,1891.8,1891.5,5.28661]
[1742310652584,4.72775252,1891.6,1891.5,5.28661]
[1742310652792,0.771,1892.0,1891.9,5.28569]
[1742310653011,6.156,1892.2,1891.7,5.28601]
[1742310653322,6.156,1892.2,1892.1,5.28513]
[1742310653526,6.156,1892.2,1892.0,5.2853]
[1742310653701,6.7716,1892.2,1892.1,5.28513]
[1742310653897,6.51742872,1892.2,1892.1,5.28513]
[1742310654199,5.13082872,1892.2,1892.1,5.28513]
[1742310654403,0.4030762,1892.2,1892.1,5.28513]
[1742310654725,17.7540673,1892.4,1892.2,10.56942]
[1742310654925,0.2600673,1892.4,1892.2,5.28468]
[1742310655127,5.28461,1892.3,1892.0,5.28537]
[1742310655302,0.7834,1892.2,1892.0,10.57052]
[1742310655719,0.7834,1892.2,1892.0,5.28524]
[1742310656229,4.72775252,1892.1,1892.0,5.28524]
[1742310657496,6.013475,1891.9,1891.8,5.28587]
[1742310657694,4.72775252,1891.9,1891.8,5.28587]
[1742310658497,5.384,1892.1,1892.0,5.28541]
[1742310658808,4.72775252,1892.1,1892.0,5.28541]
[1742310662047,5.383,1892.6,1892.5,5.28401]
[1742310663127,10.11075252,1892.6,1892.5,5.28401]
[1742310665120,0.8218,1892.9,1892.8,5.28317]
[1742310665319,4.72775252,1892.9,1892.8,5.28317]
[1742310666255,5.64598317,1893.2,1893.1,5.28234]
[1742310666418,10.11075252,1893.2,1893.1,5.28234]
[1742310666830,4.72775252,1893.2,1893.1,5.28234]
[1742310667252,4.72775252,1893.2,1893.1,6.338812]
[1742310667451,4.72775252,1893.4,1893.3,5.28178]
[1742310667762,4.72775252,1893.5,1893.4,5.2815]
[1742310667965,5.382,1893.7,1893.5,5.28111]
[1742310668151,4.72775252,1893.6,1893.5,5.28111]
[1742310668733,0.39206909,1893.9,1893.8,5.28038]
[1742310669038,4.72775252,1893.9,1893.8,5.28038]
[1742310670183,4.72775252,1893.9,1893.7,5.28053]
[1742310670381,10.00815252,1893.8,1893.5,5.28119]
[1742310670679,10.23060504,1893.6,1893.4,5.28148]
[1742310670877,5.44140333,1893.5,1893.2,5.28195]
[1742310671037,0.71365081,1893.5,1893.3,5.28166]
[1742310672262,4.72775252,1893.4,1893.1,5.28228]
[1742310672463,4.72775252,1893.2,1893.0,10.56481]
[1742310672789,4.72775252,1893.1,1893.0,5.28238]
[1742310673285,4.71630297,1893.1,1892.9,5.28264]
[1742310673450,4.71630297,1893.1,1893.0,5.28262]
[1742310674269,4.71630297,1893.3,1893.2,5.28184]
[1742310677258,4.71630297,1893.3,1893.1,5.28223]
[1742310677536,11.47591,1893.2,1892.8,10.5662]
[1742310677736,4.71630297,1892.9,1892.8,8.28304]
[1742310677957,4.71630297,1892.9,1892.8,3.0]
[1742310678372,4.71630297,1892.9,1892.8,8.28317]
[1742310679276,4.71630297,1892.9,1892.8,3.0]
[1742310679872,5.18793327,1892.9,1892.5,5.28393]
[1742310680081,5.18793327,1892.9,1892.2,5.28471]
[1742310680082,10.00018297,1892.6,1892.2,5.28471]
[1742310680368,4.71630297,1892.3,1892.2,5.28471]
[1742310681077,4.71630297,1892.3,1891.9,5.28566]
[1742310681078,10.81082297,1892.3,1891.9,5.28566]
[1742310681240,4.71630297,1892.0,1891.8,5.28586]
[1742310681443,4.71630297,1892.0,1891.7,5.28616]
[1742310681740,5.51680297,1891.8,1891.5,5.28674]
[1742310681936,4.71630297,1891.6,1891.5,5.28674]
[1742310683165,4.71630297,1891.6,1891.5,8.28674]
[1742310684875,4.71630297,1891.6,1891.4,5.28703]
[1742310685444,4.71630297,1891.6,1891.3,5.28734]
[1742310685445,10.09430297,1891.6,1891.3,5.28734]
[1742310685668,4.71630297,1891.4,1891.2,5.28752]
[1742310685872,5.11437508,1891.4,1891.0,6.34648382]
[1742310686073,4.71630297,1891.2,1891.1,5.28779]
[1742310686276,4.71630297,1891.2,1891.1,8.28779]
[1742310686479,4.71630297,1891.2,1891.1,5.28779]
[1742310686854,4.71630297,1891.2,1891.1,8.28779]
[1742310687058,5.11437508,1891.4,1891.3,5.28736]
[1742310687258,4.71630297,1891.5,1891.4,5.28708]
[1742310687576,5.10960441,1891.5,1891.4,5.28708]
[1742310689258,4.71630297,1891.5,1891.4,5.28708]
[1742310690264,5.47570297,1891.9,1891.8,5.28597]
[1742310690459,4.71630297,1891.9,1891.8,5.28597]
[1742310690999,5.77079685,1892.0,1891.9,5.28569]
[1742310691194,5.38,1892.0,1891.9,5.28569]
[1742310691478,4.71630297,1892.1,1892.0,5.28541]
[1742310691690,4.71630297,1892.3,1892.2,5.28467]
[1742310692047,5.11907183,1892.5,1892.4,5.28429]
[1742310692265,4.71630297,1892.5,1892.4,5.28429]
[1742310692681,4.71630297,1892.5,1892.4,3.0]
[1742310693291,5.74216104,1892.5,1892.2,3.0]
[1742310693453,4.71630297,1892.3,1892.2,3.0]
[1742310693651,10.09530297,1892.3,1892.2,3.0]
[1742310693852,10.09530297,1892.3,1891.6,42.21229251]
[1742310694155,4.71630297,1891.9,1891.8,5.28597]
[1742310694777,4.71630297,1891.9,1891.8,8.28597]
[1742310694993,4.71630297,1891.9,1891.8,3.0]
[1742310696010,4.71630297,1891.9,1891.8,8.28597]
[1742310696812,4.71630297,1892.1,1892.0,8.28541]
[1742310697001,10.09530297,1892.2,1892.1,5.28513]
[1742310697155,10.09530297,1892.4,1892.3,5.28457]
[1742310697357,10.09530297,1892.4,1892.3,8.28457]
[1742310697599,4.71630297,1892.4,1892.3,9.641501]